bitfinex-derivatives/quotes_ETHF0:USTF0_20250926
["timestamp","ask_amount","ask_price","bid_price","bid_amount"]
[1758857457667,0.3373,3955.8,3955.5,0.45479]
[1758857457874,0.788,3955.4,3955.3,41.2548]
[1758857458073,0.788,3955.4,3955.3,41.5118]
[1758857460071,0.5635,3955.4,3955.3,41.8076]
[1758857461797,0.5635,3955.4,3955.3,1.4312]
[1758857462578,0.3373,3955.4,3955.3,1.4312]
[1758857463478,0.0252,3955.9,3955.3,0.9764]
[1758857463666,0.781,3955.8,3955.7,0.4312]
[1758857463870,0.781,3955.8,3955.7,0.6882]
[1758857464373,0.5719,3955.8,3955.7,0.9856]
[1758857464676,0.7816,3955.8,3955.7,0.6882]
[1758857465776,0.7816,3955.8,3955.7,0.9856]
[1758857465976,0.3521,3955.9,3955.8,1.17995]
[1758857466171,0.579,3955.9,3955.8,1.17995]
[1758857467678,0.0252,3955.9,3955.8,1.17995]
[1758857467976,0.3521,3955.9,3955.8,1.17995]
[1758857468378,0.579,3955.9,3955.8,1.17995]
[1758857468877,0.3269,3955.8,3955.7,0.71176]
[1758857469073,0.7635,3955.8,3955.7,0.92366]
[1758857469875,0.7635,3955.8,3955.7,1.43696]
[1758857470177,1.31820829,3955.8,3955.7,1.43696]
[1758857470479,0.88160829,3955.8,3955.7,1.43696]
[1758857470672,0.88160829,3955.8,3955.7,3.12348972]
[1758857471375,1.10850829,3955.8,3955.7,3.12348972]
[1758857472371,1.31820829,3955.8,3955.7,2.82608972]
[1758857472974,0.88160829,3955.8,3955.7,3.12348972]
[1758857473277,0.0252,3955.9,3955.7,2.82608972]
[1758857473477,0.2269,3956.8,3956.7,0.45464]
[1758857473773,0.5538,3956.8,3956.7,3.12336972]
[1758857473978,0.88196964,3956.8,3956.7,3.12336972]
[1758857474282,1.31856964,3956.8,3956.7,0.6848]
[1758857475073,1.31856964,3956.8,3956.7,0.4689]
[1758857475970,1.31856964,3956.8,3956.7,0.6848]
[1758857476276,0.88196964,3956.8,3956.7,2.66872972]
[1758857476582,0.55506964,3956.8,3956.7,2.66872972]
[1758857476776,0.3269,3957.3,3957.0,0.2974]
[1758857476978,0.1599,3957.5,3957.1,3.12332972]
[1758857476979,0.881504,3957.2,3957.1,3.12332972]
[1758857477781,1.108404,3957.2,3957.1,3.12332972]
[1758857478369,0.0252,3957.5,3957.4,1.17977]
[1758857478578,0.0252,3957.5,3957.4,3.12329972]
[1758857478776,0.5538,3957.5,3957.4,3.12329972]
[1758857478978,1.24469479,3957.5,3957.4,3.12329972]
[1758857479485,0.6906,3957.5,3957.4,3.12329972]
[1758857479879,0.6906,3957.5,3957.4,1.13937]
[1758857480280,0.9003,3957.5,3957.4,1.13937]
[1758857481180,0.5734,3957.5,3957.2,0.45458]
[1758857481384,0.5734,3957.5,3957.3,0.71157]
[1758857481588,0.5734,3957.5,3957.4,0.2119]
[1758857481990,0.9003,3957.5,3957.4,0.2119]
[1758857482483,0.3269,3957.4,3957.3,0.71157]
[1758857482788,0.7635,3957.4,3957.3,0.71157]
[1758857484485,0.7635,3957.4,3957.3,0.92347]
[1758857488790,0.7635,3957.4,3957.3,1.13937]
[1758857489183,0.6165,3958.0,3957.9,1.17971]
[1758857489184,0.3889,3958.0,3957.9,1.17971]
[1758857489483,0.5986,3958.0,3957.9,1.13831]
[1758857489691,0.9003,3958.0,3957.9,1.13831]
[1758857489987,0.9003,3958.0,3957.9,0.6838]
[1758857491187,0.9003,3958.0,3957.9,0.4679]
[1758857491687,0.9003,3958.0,3957.9,0.256]
[1758857492188,0.9003,3958.0,3957.9,0.4654]
[1758857494186,0.9003,3958.0,3957.9,0.6894]
[1758857494579,0.6906,3958.0,3957.9,0.9852]
[1758857494881,0.1368,3958.5,3958.3,0.88786]
[1758857494882,0.7569,3958.4,3958.3,0.88786]
[1758857495086,0.7569,3958.4,3958.3,2.83038972]
[1758857499301,0.7569,3958.4,3958.3,0.6894]
[1758857501296,1.31031678,3958.4,3958.3,0.6894]
[1758857502292,1.31068874,3958.4,3958.3,0.6894]
[1758857504799,0.1353,3958.0,3957.7,40.8]
[1758857505112,0.1353,3958.0,3957.7,0.45453]
[1758857505113,2.44342972,3957.8,3957.7,0.45453]
[1758857505291,2.99797718,3957.8,3957.7,0.71053]
[1758857505697,1.31144746,3957.8,3957.7,0.71053]
[1758857508006,1.31144746,3957.8,3957.7,0.91993]
[1758857510303,1.31144746,3957.8,3957.7,1.14393]
[1758857510503,1.10094746,3957.8,3957.7,1.43973]
[1758857510711,0.89204746,3957.8,3957.7,1.43973]
[1758857510904,1.10094746,3957.8,3957.7,1.43973]
[1758857513905,1.31144746,3957.8,3957.7,1.14393]
[1758857516211,1.31144746,3957.8,3957.7,0.91993]
[1758857519210,1.31144746,3957.8,3957.7,0.71053]
[1758857520314,1.31144746,3957.8,3957.7,1.13123]
[1758857520509,0.55454746,3957.8,3957.7,1.42693]
[1758857520706,0.1368,3958.5,3958.1,1.17199]
[1758857520707,0.3121,3958.2,3958.1,1.17199]
[1758857520905,0.3121,3958.2,3958.1,3.11451972]
[1758857521106,0.86696588,3958.2,3958.1,3.11451972]
[1758857521913,1.08096588,3958.2,3958.1,3.11451972]
[1758857522308,1.30046588,3958.2,3958.1,0.87629]
[1758857522615,1.30046588,3958.2,3958.1,0.71049]
[1758857522810,1.30046588,3958.2,3957.5,0.2957]
[1758857522811,0.8722,3957.5,3957.4,0.2105]
[1758857523012,0.8722,3957.5,3957.4,2.66002972]
[1758857523212,0.6527,3957.5,3957.4,2.66002972]
[1758857524215,0.9146,3958.0,3957.9,0.2226]
[1758857524409,1.46938775,3958.0,3957.9,0.4786]
[1758857524607,1.46938775,3958.0,3957.9,0.71051]
[1758857525414,1.46938775,3958.0,3957.5,1.68652972]
[1758857525614,0.788,3957.6,3957.5,0.45455]
[1758857525812,1.34278775,3957.6,3957.5,0.256]
[1758857526815,0.58696,3957.5,3957.0,0.4546]
[1758857527016,0.58696,3957.5,3956.2,1.71994485]
[1758857527017,0.1324,3957.0,3956.2,1.71994485]
[1758857527311,0.788,3956.7,3956.6,0.45465]
[1758857527513,1.34233151,3956.7,3956.6,0.71065]
[1758857527719,1.34233151,3956.7,3956.6,0.256]
[1758857528815,1.34233151,3956.7,3955.2,3.48944571]
[1758857528816,0.1324,3956.0,3955.9,0.67733]
[1758857529014,0.9204,3956.0,3955.7,0.45476]
[1758857529220,0.9204,3956.0,3955.3,0.8989]
[1758857529221,0.788,3955.4,3955.3,0.8989]
[1758857529407,0.788,3955.4,3955.3,1.1549]
[1758857529915,0.788,3955.4,3955.3,0.7001]
[1758857530114,0.788,3955.4,3955.3,0.256]
[1758857530322,0.788,3955.4,3955.3,0.4786]
[1758857530816,0.788,3955.4,3955.3,0.7001]
[1758857531116,1.81892972,3956.0,3955.8,0.4441]
[1758857531117,0.5659,3955.9,3955.8,0.4441]
[1758857531308,0.5659,3955.9,3955.8,2.68232972]
[1758857531717,0.5659,3955.9,3955.8,3.13706972]
[1758857532111,0.788,3955.9,3955.8,2.38662972]
[1758857532314,0.788,3955.9,3955.5,1.68652972]
[1758857532520,0.788,3955.8,3955.7,0.67736]
[1758857533019,0.788,3955.8,3955.4,0.45479]
[1758857533224,0.58714,3956.0,3955.5,0.256]
[1758857533225,0.4491,3955.6,3955.5,0.256]
[1758857533419,0.788,3955.6,3955.5,0.256]
[1758857535629,0.58714,3956.0,3955.0,2.02407428]
[1758857535630,0.788,3955.1,3955.0,2.46817428]
[1758857535922,0.5659,3955.1,3955.0,3.01987428]
[1758857536126,0.3389,3955.1,3955.0,3.01987428]
[1758857537521,0.45475,3955.9,3955.4,0.45479]
[1758857537522,0.5659,3955.9,3955.4,0.45479]
[1758857537724,0.5659,3955.9,3955.8,0.2226]
[1758857537725,0.788,3955.9,3955.8,0.2226]
[1758857537927,0.788,3955.9,3955.5,0.256]
[1758857539020,0.5815,3955.5,3954.7,0.2957]
[1758857539330,0.788,3955.2,3955.1,0.89893]
[1758857539629,0.788,3955.2,3955.1,1.15493]
[1758857539922,0.788,3955.2,3955.1,0.7001]
[1758857540127,0.788,3955.2,3955.1,0.4786]
[1758857541829,0.788,3955.2,3955.1,0.2226]
[1758857542028,0.788,3955.2,3955.1,0.4786]
[1758857542924,0.788,3955.2,3954.6,2.02407428]
[1758857543123,0.788,3954.8,3954.7,0.4786]
[1758857543520,0.788,3954.8,3954.7,0.2226]
[1758857543720,0.788,3954.8,3954.7,0.7001]
[1758857543919,0.5659,3954.8,3954.7,0.9958]
[1758857544125,0.9204,3955.5,3955.4,0.4441]
[1758857544422,0.9204,3955.5,3955.4,2.72417428]
[1758857544616,0.9204,3955.5,3955.4,3.01987428]
[1758857544821,0.9204,3955.5,3955.4,0.7001]
[1758857545220,0.9204,3955.5,3954.5,0.127]
[1758857545221,0.1324,3955.0,3954.9,2.02407428]
[1758857545429,0.9204,3955.0,3954.9,2.95752428]
[1758857545617,0.9204,3955.0,3954.9,3.17902428]
[1758857546632,0.9204,3955.0,3954.9,2.92302428]
[1758857546834,0.9204,3955.0,3954.9,3.17902428]
[1758857547628,0.227,3953.4,3953.3,0.7001]
[1758857547932,0.5659,3953.4,3953.3,2.72417428]
[1758857548125,0.1324,3954.0,3953.3,43.82187428]
[1758857548330,0.4713,3954.0,3953.9,2.46817428]
[1758857548528,1.15326,3954.0,3953.9,2.46817428]
[1758857548825,1.37536,3954.0,3953.9,2.46817428]
[1758857549021,1.37536,3954.0,3953.9,2.24667428]
[1758857549224,1.37536,3954.0,3953.9,2.46817428]
[1758857550536,1.37536,3954.0,3953.9,0.4441]
[1758857551239,0.45498,3953.8,3953.7,0.258]
[1758857551432,1.20308,3953.8,3953.7,0.7023]
[1758857551937,1.20308,3953.8,3953.7,0.4443]
[1758857552138,1.20308,3953.8,3953.7,0.7023]
[1758857553329,1.20308,3953.8,3953.3,42.82407428]
[1758857553330,0.455,3953.7,3953.3,42.82407428]
[1758857553530,0.8815,3953.5,3953.4,0.7023]
[1758857554137,0.8815,3953.5,3953.4,0.9986]
[1758857554336,0.8815,3953.5,3953.4,0.7406]
[1758857554539,0.8815,3953.5,3953.4,0.9976]
[1758857554932,0.45498,3953.9,3953.4,0.9976]
[1758857555138,0.45498,3953.9,3953.7,0.4443]
[1758857555139,0.5399,3953.8,3953.7,0.4443]
[1758857555444,0.7481,3953.8,3953.7,0.7013]
[1758857557438,0.7481,3953.8,3953.7,0.9976]
[1758857557439,0.5399,3953.8,3953.7,0.9976]
[1758857557738,0.3124,3953.8,3953.7,0.9976]
[1758857557946,0.3124,3954.0,3953.9,0.7406]
[1758857558244,0.5399,3954.0,3953.9,3.02167428]
[1758857558938,0.1324,3954.5,3953.9,3.47663428]
[1758857559140,0.99483,3954.3,3954.2,0.4443]
[1758857559354,1.54572979,3954.3,3954.2,0.7013]
[1758857559646,0.86329979,3954.3,3954.2,3.02167428]
[1758857559836,0.1324,3954.5,3954.2,2.72537428]
[1758857560036,0.1324,3954.5,3954.3,0.7406]
[1758857560037,1.09078995,3954.4,3954.3,0.7406]
[1758857560740,1.75389995,3954.4,3954.3,0.4443]
[1758857561743,1.29898995,3954.4,3954.3,0.7013]
[1758857562139,0.3124,3954.7,3954.4,0.45491]
[1758857562349,0.3124,3954.9,3954.8,0.7406]
[1758857562643,0.5399,3954.9,3954.8,0.9976]
[1758857562847,1.29945801,3954.9,3954.8,0.7013]
[1758857563141,0.2275,3954.3,3954.2,0.4443]
[1758857563346,0.5399,3954.3,3954.2,41.7976]
[1758857563542,0.1334,3954.0,3952.9,0.4803782]
[1758857563741,0.5399,3953.1,3953.0,0.7406]
[1758857563945,0.5399,3953.1,3953.0,3.02267428]
[1758857564149,0.5399,3953.1,3953.0,43.82267428]
[1758857564339,0.3124,3953.4,3953.0,48.08207428]
[1758857564541,0.1334,3954.0,3953.6,0.4443]
[1758857564542,0.5399,3953.7,3953.6,0.4443]
[1758857564749,1.20309,3953.7,3953.6,0.258]
[1758857564950,0.5399,3953.1,3953.0,40.8]
[1758857565448,0.5399,3953.1,3953.0,41.058]
[1758857565650,0.7481,3953.1,3953.0,0.258]
[1758857569551,0.7481,3953.1,3949.5,4.50241564]
[1758857569552,0.58847,3953.0,3951.0,0.031]
[1758857569749,0.58847,3953.0,3951.7,0.508]
[1758857569750,0.7481,3951.8,3951.7,0.508]
[1758857570837,0.3124,3951.8,3951.7,0.508]
[1758857571141,0.1334,3952.5,3951.8,0.45521]
[1758857571449,0.4458,3952.0,3951.9,2.02407428]
[1758857571652,0.4458,3952.0,3951.9,2.28307428]
[1758857572556,0.6733,3952.0,3951.9,2.28307428]
[1758857573143,0.6733,3952.0,3951.9,2.02407428]
[1758857573342,0.6733,3952.0,3951.9,2.28307428]
[1758857573556,0.4458,3952.0,3951.9,2.28307428]
[1758857574152,0.4458,3952.0,3951.7,0.25]
[1758857574153,0.8815,3952.0,3951.7,0.25]
[1758857574452,0.3124,3951.9,3951.8,0.259]
[1758857577057,0.7481,3951.9,3951.8,0.259]
[1758857577553,0.4357,3951.9,3951.7,0.70522]
[1758857577751,0.7481,3951.9,3951.8,0.259]
[1758857578151,0.4357,3951.9,3951.7,0.70522]
[1758857578355,0.3124,3951.8,3951.7,0.70522]
[1758857578551,0.5399,3951.8,3951.7,0.96422]
[1758857579156,0.7481,3951.8,3951.7,0.70522]
[1758857579351,0.7481,3951.8,3951.7,0.96422]
[1758857579551,0.7481,3951.8,3951.7,0.509]
[1758857581261,0.5399,3951.8,3951.7,0.5144]
[1758857581759,0.3124,3951.8,3951.7,5.5161]
[1758857582149,0.7486,3951.8,3951.7,0.5144]
[1758857583447,0.7486,3951.8,3951.7,0.2554]
[1758857583657,0.7486,3951.8,3951.7,0.5144]
[1758857583961,0.3124,3951.8,3951.7,0.5161]
[1758857584162,0.3124,3951.8,3951.7,0.5144]
[1758857584457,0.521,3951.8,3951.7,0.5144]
[1758857585459,0.3124,3951.8,3951.7,0.2554]
[1758857585661,0.3124,3951.8,3951.7,0.5144]
[1758857585959,0.0253,3951.9,3951.8,0.45521]
[1758857586262,0.3425,3951.9,3951.8,0.45521]
[1758857587156,0.5511,3951.9,3951.8,0.45521]
[1758857587458,0.7637,3951.9,3951.8,0.45521]
[1758857590563,0.5511,3951.9,3951.8,0.45521]
[1758857591257,0.5511,3951.9,3951.8,0.71321]
[1758857591655,0.3425,3951.9,3951.8,0.71321]
[1758857591856,0.0253,3951.9,3951.8,5.71321]
[1758857592163,0.3425,3951.9,3951.8,5.71321]
[1758857592564,0.3425,3951.9,3951.8,7.40252527]
[1758857593565,0.5511,3951.9,3951.8,7.40252527]
[1758857593957,0.5511,3951.9,3951.8,2.40252527]
[1758857594458,0.7637,3951.9,3951.8,2.40252527]
[1758857596767,0.3425,3951.9,3951.8,2.40252527]
[1758857597263,1e-05,3951.9,3951.8,2.40252527]
[1758857597765,0.3172,3952.2,3952.1,0.45518]
[1758857597965,0.3172,3952.2,3952.1,2.40249527]
[1758857598169,0.3172,3952.2,3952.1,43.20249527]
[1758857598873,0.5546,3953.0,3952.9,0.88898]
[1758857599064,0.5546,3953.0,3952.9,2.83629527]
[1758857599267,0.5546,3953.0,3952.9,0.71308]
[1758857599962,5.5546,3953.0,3952.1,40.8]
[1758857600160,5.5546,3953.0,3952.1,41.25518]
[1758857600161,0.4212,3952.2,3952.1,41.25518]
[1758857600368,0.4212,3952.2,3952.1,41.51318]
[1758857600770,0.7384,3952.2,3952.1,41.51318]
[1758857602863,0.7384,3952.2,3952.1,41.83058]
[1758857603069,0.7384,3952.2,3952.1,43.20249527]
[1758857603769,0.7384,3952.2,3952.1,40.8]
[1758857603972,5.7384,3952.2,3952.1,40.8]
[1758857604175,5.7384,3952.2,3952.1,41.058]
[1758857604870,0.7384,3952.2,3952.1,42.74731527]
[1758857605074,0.7384,3952.2,3952.1,42.48931527]
[1758857605278,0.7384,3952.2,3952.1,42.74731527]
[1758857605775,0.5258,3952.2,3952.1,43.06471527]
[1758857606174,0.5258,3952.2,3952.1,42.74731527]
[1758857606683,0.5258,3952.2,3952.1,43.06471527]
[1758857607778,0.5258,3952.2,3952.1,42.74731527]
[1758857609180,0.3172,3952.2,3952.1,43.06471527]
[1758857610968,0.3172,3952.2,3952.1,42.48931527]
[1758857611173,0.3172,3952.2,3952.1,41.058]
[1758857612382,0.3172,3952.2,3952.1,41.3754]
[1758857612980,0.7037,3952.5,3952.4,0.428]
[1758857613187,1.4711295,3952.5,3952.4,1.14114]
[1758857619980,1.4711295,3952.5,3952.4,0.92514]
[1758857620283,0.7848,3952.3,3952.2,0.45516]
[1758857620485,1.3362295,3952.3,3952.2,0.71316]
[1758857621584,1.3362295,3952.3,3952.2,0.92516]
[1758857622987,1.3362295,3952.3,3952.2,0.66716]
[1758857623188,1.3362295,3952.3,3952.2,0.92516]
[1758857626092,1.3362295,3952.3,3952.2,0.71316]
[1758857626486,0.9952295,3952.3,3952.1,40.8]
[1758857626691,0.89336221,3952.2,3952.1,40.8]
[1758857626895,0.89336221,3952.2,3952.1,41.058]
[1758857630886,0.55236221,3952.2,3952.1,41.3754]
[1758857631185,0.5688,3952.6,3952.5,1.20053]
[1758857631391,1.12154301,3952.6,3952.5,1.45753]
[1758857631795,0.341,3952.9,3952.8,0.4551]
[1758857631989,0.7848,3952.9,3952.8,2.83041527]
[1758857632189,1.33685603,3952.9,3952.8,2.83041527]
[1758857632789,0.89305603,3952.9,3952.8,3.14781527]
[1758857633295,0.5688,3952.9,3952.8,3.14781527]
[1758857636296,0.0252,3953.4,3953.3,1.20044]
[1758857636591,0.341,3953.9,3953.4,0.3174]
[1758857636786,1.33606121,3953.8,3953.7,0.212]
[1758857636985,1.33606121,3953.8,3953.7,0.47]
[1758857637286,1.33606121,3953.8,3953.7,3.14769527]
[1758857637785,1.33606121,3953.8,3953.7,1.45838]
[1758857637987,1.12006121,3953.8,3953.7,3.14769527]
[1758857638393,0.5688,3953.8,3953.7,3.14769527]
[1758857639990,0.5688,3953.8,3953.7,2.69271527]
[1758857640290,0.5688,3953.8,3953.4,0.45502]
[1758857640291,0.7511,3953.7,3953.4,0.45502]
[1758857640495,2.57361527,3953.5,3953.4,0.45502]
[1758857640695,0.8843,3953.5,3953.4,0.71202]
[1758857640895,0.8843,3953.5,3953.4,0.94052]
[1758857641193,0.8843,3953.5,3953.4,2.85353527]
[1758857641393,0.8843,3953.5,3953.4,3.16973527]
[1758857641991,0.8843,3953.5,3953.4,2.85353527]
[1758857642594,0.6541,3953.5,3953.4,3.16973527]
[1758857642789,0.5729,3953.5,3953.0,1.68931527]
[1758857643094,0.1332,3952.5,3952.4,2.14445527]
[1758857643294,0.8843,3952.5,3952.4,0.71314]
[1758857643484,0.8843,3952.5,3952.4,0.90734]
[1758857643689,0.5209,3952.5,3952.4,1.48154]
[1758857644290,0.8783,3952.5,3952.4,0.71314]
[1758857644595,0.8783,3952.5,3952.4,0.93814]
[1758857645402,0.7852,3952.4,3952.3,0.68015]
[1758857645599,0.7852,3952.4,3952.3,2.84086527]
[1758857645901,0.1332,3953.0,3952.4,0.45514]
[1758857646105,1.33565147,3952.9,3952.8,0.225]
[1758857646290,1.33565147,3952.9,3952.0,41.25518]
[1758857646291,0.3386,3952.8,3952.0,41.25518]
[1758857646496,0.7852,3952.2,3952.1,0.6964]
[1758857646698,0.7852,3952.2,3952.1,0.4384]
[1758857646892,0.7852,3952.2,3952.1,0.483]
[1758857647298,0.7852,3951.8,3951.7,0.475]
[1758857647498,0.7852,3951.8,3951.7,1.40162]
[1758857647801,0.7852,3951.8,3951.7,42.20162]
[1758857647998,0.7852,3951.8,3951.7,42.51912]
[1758857648200,0.7852,3951.8,3951.7,42.20162]
[1758857648405,0.7852,3951.8,3951.7,41.7464]
[1758857648900,0.7852,3951.8,3950.9,39.459]
[1758857648901,0.4466,3950.4,3949.1,1.80291599]
[1758857649102,0.475,3950.0,3949.9,0.7559]
[1758857649308,0.475,3950.0,3949.9,1.0139]
[1758857649803,0.583,3950.5,3950.4,0.225]
[1758857650005,0.583,3950.5,3950.4,0.483]
[1758857650198,0.9216,3950.5,3950.4,0.6964]
[1758857652209,0.9216,3950.5,3950.4,1.46927]
[1758857652210,0.3386,3950.5,3950.4,1.46927]
[1758857652400,0.5642,3950.8,3950.7,0.4384]
[1758857652703,0.5642,3950.8,3950.7,0.6964]
[1758857652909,0.7852,3950.8,3950.7,0.6964]
[1758857655215,0.7852,3950.8,3950.7,0.483]
[1758857655404,0.7852,3950.4,3950.3,0.225]
[1758857655713,0.7852,3950.4,3950.3,0.483]
[1758857656115,0.7852,3950.4,3950.3,41.025]
[1758857656313,0.7852,3950.4,3949.4,0.7559]
[1758857656314,0.362,3949.5,3949.4,0.7559]
[1758857656608,0.7006,3949.5,3949.4,0.6964]
[1758857656812,0.7006,3949.5,3949.4,41.4964]
[1758857657418,0.7006,3949.5,3949.4,41.2384]
[1758857657814,2.72999587,3949.5,3949.4,41.058]
[1758857658320,2.61239587,3949.5,3949.4,0.258]
[1758857658622,0.9216,3949.5,3949.4,0.258]
[1758857659218,0.9216,3949.5,3949.4,0.483]
[1758857659524,0.9216,3950.0,3949.9,0.225]
[1758857660218,0.9216,3950.0,3949.8,0.258]
[1758857660419,1.37703,3950.0,3949.8,0.258]
[1758857661517,1.37703,3950.0,3949.0,40.8]
[1758857661518,0.5642,3949.1,3949.0,40.8]
[1758857661712,0.5642,3949.1,3949.0,41.058]
[1758857662123,0.5642,3949.1,3949.0,41.3755]
[1758857664620,0.3386,3949.1,3948.2,0.3175]
[1758857664818,0.3386,3949.1,3949.0,0.7559]
[1758857665017,0.3386,3949.1,3949.0,1.0149]
[1758857665221,0.3386,3949.1,3949.0,41.8149]
[1758857665718,0.1364,3949.5,3949.0,41.8149]
[1758857665917,0.3386,3949.9,3949.4,0.7559]
[1758857666119,0.1364,3950.0,3949.9,0.225]
[1758857666120,0.9216,3950.0,3949.9,0.225]
[1758857666327,0.1364,3950.5,3949.9,0.7559]
[1758857666328,0.3386,3950.4,3949.9,0.7559]
[1758857666628,0.7852,3950.4,3950.3,0.225]
[1758857666925,0.7852,3950.4,3949.8,0.259]
[1758857667120,0.1364,3950.0,3949.9,0.225]
[1758857667425,0.583,3950.0,3949.9,0.6974]
[1758857667826,0.9216,3950.0,3949.9,0.6974]
[1758857668328,0.9216,3950.0,3949.9,0.484]
[1758857668827,0.9216,3950.0,3949.9,0.225]
[1758857669530,0.9216,3950.0,3949.8,0.259]
[1758857669728,0.9216,3950.0,3949.3,0.484]
[1758857669729,0.7852,3949.4,3949.3,0.484]
[1758857670025,0.3386,3949.7,3949.3,0.6974]
[1758857670221,0.7562,3949.9,3949.8,0.2234]
[1758857670824,0.7562,3949.9,3949.8,0.7492]
[1758857671315,0.3205,3949.9,3949.8,1.0082]
[1758857672228,0.3205,3949.9,3949.8,0.6904]
[1758857672229,0.5394,3949.9,3949.8,0.6904]
[1758857676023,0.7562,3949.9,3949.8,0.6904]
[1758857677325,1.10594301,3949.9,3949.8,0.6904]
[1758857677622,1.10594301,3949.9,3949.8,1.0082]
[1758857677623,0.56654301,3949.9,3949.8,1.0082]
[1758857677818,0.0253,3950.2,3949.8,1.0082]
[1758857677819,0.0253,3950.2,3950.1,0.45541]
[1758857678022,0.0253,3950.2,3950.1,1.20461]
[1758857678222,0.59187497,3950.2,3950.1,1.20461]
[1758857678432,1.13127497,3950.2,3950.1,1.20461]
[1758857679131,1.34807497,3950.2,3949.9,0.45542]
[1758857679426,1.34807497,3950.2,3950.0,0.259]
[1758857679427,1.32277497,3950.1,3950.0,0.259]
[1758857679622,1.32277497,3950.1,3950.0,1.0082]
[1758857679827,0.56657497,3950.1,3950.0,1.0082]
[1758857680324,0.88707497,3950.1,3950.0,1.0082]
[1758857680529,0.56657497,3950.1,3950.0,1.0082]
[1758857680731,0.56657497,3950.1,3950.0,41.8082]
[1758857680926,0.0253,3950.2,3950.1,0.99661]
[1758857681126,0.0253,3950.2,3950.1,1.20461]
[1758857681627,0.59280905,3950.2,3950.1,1.20461]
[1758857683233,0.0253,3950.2,3950.1,3.2345356]
[1758857683435,0.0253,3950.2,3950.1,8.2345356]
[1758857685533,0.6758,3951.0,3950.9,1.20451]
[1758857685832,1.10022252,3951.0,3950.9,1.46351]
[1758857686038,0.56082252,3951.0,3950.9,1.46351]
[1758857686332,0.1364,3951.5,3951.4,1.20446]
[1758857686333,0.6758,3951.5,3951.4,1.20446]
[1758857686531,0.3205,3952.0,3951.9,0.4552]
[1758857686729,1.44633421,3952.0,3951.9,0.4824]
[1758857686930,1.44633421,3952.0,3951.9,0.259]
[1758857687127,1.44633421,3952.0,3951.9,41.2824]
[1758857687329,0.5394,3952.0,3951.9,41.3412]
[1758857687836,0.5394,3952.0,3951.9,41.6002]
[1758857688340,0.1318,3952.5,3951.9,41.6002]
[1758857688341,0.888,3952.5,3952.4,0.67854]
[1758857688633,0.888,3952.5,3952.4,1.14554]
[1758857688935,0.888,3952.5,3952.4,1.46334]
[1758857689137,0.888,3952.5,3952.4,1.14554]
[1758857690234,0.888,3952.5,3952.4,0.6904]
[1758857690933,0.888,3952.5,3951.9,41.2552]
[1758857690934,0.1318,3952.0,3951.9,41.2552]
[1758857691134,0.4523,3952.0,3951.9,41.5142]
[1758857692035,0.5675,3952.5,3952.4,0.2234]
[1758857692640,0.888,3952.5,3952.3,0.259]
[1758857692936,0.888,3952.5,3952.1,0.45517]
[1758857693239,0.7562,3952.3,3952.2,0.4824]
[1758857694342,0.7562,3952.3,3952.2,0.259]
[1758857695339,0.1318,3952.0,3951.9,40.8]
[1758857695536,0.4523,3952.0,3951.9,40.8]
[1758857696135,0.3205,3952.0,3951.9,41.1178]
[1758857696342,0.4523,3952.0,3951.9,40.8]
[1758857697143,0.4523,3952.0,3951.9,41.059]
[1758857697437,0.3205,3952.0,3951.9,41.3768]
[1758857697634,0.4523,3952.0,3951.9,41.059]
[1758857699840,0.4523,3952.0,3951.9,40.8]
[1758857700047,0.4523,3952.0,3951.9,41.059]
[1758857700640,0.4523,3952.0,3951.9,0.9981]
[1758857700641,0.8913,3952.0,3951.9,0.9981]
[1758857700842,0.3205,3952.0,3951.9,0.9981]
[1758857701043,0.893,3952.5,3952.4,0.2113]
[1758857701340,0.893,3952.5,3951.9,0.5764]
[1758857701341,1.44657812,3952.5,3952.1,0.259]
[1758857701543,1.44657812,3952.5,3950.2,39.472]
[1758857701544,0.7612,3951.2,3950.2,39.472]
[1758857701743,0.439,3950.9,3950.3,41.059]
[1758857701942,0.8876,3950.5,3950.4,0.62517]
[1758857702652,0.8876,3950.5,3950.4,0.79497]
[1758857702945,0.8876,3950.5,3950.4,0.62517]
[1758857703141,0.8876,3950.5,3950.3,0.71437]
[1758857703340,0.7612,3950.4,3950.3,0.45537]
[1758857703644,0.7612,3950.4,3950.3,0.71437]
[1758857704046,0.7612,3950.4,3950.3,0.259]
[1758857704648,5.7612,3950.4,3950.3,0.259]
[1758857704946,0.3222,3950.4,3950.3,0.6006]
[1758857705146,0.5417,3950.4,3950.3,0.6006]
[1758857705545,0.7549,3950.4,3950.3,0.259]
[1758857706257,0.7549,3950.4,3950.3,0.4298]
[1758857707252,0.7549,3950.4,3950.3,0.6006]
[1758857708449,0.7549,3950.4,3950.3,0.259]
[1758857709655,0.7549,3950.4,3950.3,0.4298]
[1758857709847,0.7549,3950.4,3950.3,0.6006]
[1758857710347,0.3222,3950.4,3950.3,0.6006]
[1758857711153,0.5417,3950.4,3950.3,0.6006]
[1758857711544,0.5844,3951.0,3950.9,0.62611]
[1758857711849,0.5591,3951.0,3950.9,0.1708]
[1758857712152,0.8785,3951.0,3950.9,0.1708]
[1758857713952,0.8785,3951.0,3950.9,0.3416]
[1758857714541,0.6653,3951.0,3950.9,0.3416]
[1758857715153,0.4458,3951.0,3950.9,0.4484]
[1758857715852,0.3194,3951.0,3950.9,41.2484]
[1758857716249,0.6653,3951.5,3951.4,0.79686]
[1758857716451,0.6653,3951.5,3951.4,1.05586]